bitfinex-derivatives/quotes_SOLF0:USTF0_20250312
["timestamp","ask_amount","ask_price","bid_price","bid_amount"]
[1741810840638,8.08658151,124.56,124.54,8.0308]
[1741810841525,0.05678151,124.56,124.53,0.05626903]
[1741810841725,8.0309,124.54,124.53,0.05626903]
[1741810842027,0.05678151,124.56,124.53,0.05626903]
[1741810842833,31.09678151,124.56,124.53,0.05626903]
[1741810843033,8.0309,124.54,124.53,0.05626903]
[1741810843335,31.09678151,124.56,124.53,0.05626903]
[1741810844140,0.05678151,124.56,124.53,0.05626903]
[1741810844531,8.0304,124.55,124.53,0.05626903]
[1741810846233,0.05678151,124.56,124.53,0.05626903]
[1741810847135,44.31563752,124.58,124.53,20.94750243]
[1741810847329,44.31563752,124.58,124.57,8.029]
[1741810847734,161.75965567,124.6,124.57,8.029]
[1741810848038,133.29118787,124.6,124.57,8.029]
[1741810848237,141.31868787,124.6,124.55,51.9312334]
[1741810848429,141.37377171,124.6,124.57,0.0530782]
[1741810848938,0.05508384,124.6,124.58,8.028]
[1741810849134,0.05508384,124.6,124.57,0.0530782]
[1741810849639,8.0282,124.59,124.57,0.0530782]
[1741810850027,0.05508384,124.6,124.57,0.0530782]
[1741810850227,8.0284,124.58,124.57,0.0530782]
[1741810851241,8.0306,124.55,124.52,6.3304]
[1741810851842,8.0306,124.55,124.52,14.3623]
[1741810852342,8.08641741,124.55,124.52,14.41663883]
[1741810854238,0.05581741,124.55,124.52,8.08623883]
[1741810854442,8.0314,124.54,124.52,0.05433883]
[1741810855038,0.05581741,124.55,124.52,0.05433883]
[1741810855648,0.05581741,124.55,124.54,8.0309]
[1741810856251,0.05581741,124.55,124.52,0.05433883]
[1741810856752,8.0313,124.54,124.52,0.05433883]
[1741810857045,0.05581741,124.55,124.52,0.05433883]
[1741810857651,8.08641741,124.55,124.52,8.08623883]
[1741810859054,0.05581741,124.55,124.53,8.0314]
[1741810859351,0.05581741,124.55,124.52,0.05433883]
[1741810859553,8.0314,124.54,124.52,0.05433883]
[1741810860154,0.05581741,124.55,124.52,0.05433883]
[1741810860350,8.0316,124.53,124.52,0.05433883]
[1741810862454,39.0712,124.54,124.52,0.05433883]
[1741810862855,31.04,124.54,124.52,0.05433883]
[1741810863156,8.0316,124.53,124.52,0.05433883]
[1741810864352,31.04,124.54,124.52,0.05433883]
[1741810864555,44.68398203,124.55,124.52,0.05433883]
[1741810865852,44.68398203,124.55,124.53,8.0312]
[1741810866949,44.68398203,124.55,124.54,8.0309]
[1741810867352,0.05581741,124.55,124.54,8.0309]
[1741810868857,0.05581741,124.55,124.53,21.40377335]
[1741810869463,0.05581741,124.55,124.54,8.0309]
[1741810869659,0.05581741,124.55,124.53,13.37247335]
[1741810869859,0.05581741,124.55,124.52,0.05433883]
[1741810870051,0.05581741,124.55,124.52,8.08613883]
[1741810870456,0.05581741,124.55,124.52,0.05433883]
[1741810870656,13.37247335,124.54,124.52,0.05433883]
[1741810871054,21.40407335,124.53,124.52,0.05433883]
[1741810871255,13.37247335,124.53,124.45,13.37247335]
[1741810871457,4.1981,124.56,124.42,13.37247335]
[1741810871458,13.37247335,124.47,124.42,13.37247335]
[1741810871657,13.37247335,124.43,124.38,2.1092]
[1741810871962,13.37247335,124.41,124.37,222.78761967]
[1741810872263,20.94744979,124.42,124.35,227.07071967]
[1741810872459,0.0519131,124.4,124.38,0.05310007]
[1741810874363,0.0519131,124.4,124.38,8.09440007]
[1741810874660,0.0519131,124.4,124.38,0.05310007]
[1741810875262,0.0519131,124.4,124.39,8.0406]
[1741810875660,0.0519131,124.4,124.38,0.05310007]
[1741810877459,20.99936289,124.4,124.34,2.1092]
[1741810878367,0.0519131,124.4,124.34,2.1092]
[1741810878566,0.0519131,124.4,124.36,0.05249933]
[1741810879466,20.99936289,124.4,124.36,0.05249933]
[1741810880263,0.0519131,124.4,124.36,0.05249933]
[1741810881265,0.0519131,124.4,124.37,8.0414]
[1741810881668,0.0519131,124.4,124.36,0.05249933]
[1741810882066,0.0519131,124.4,124.37,8.0414]
[1741810882963,20.99936289,124.4,124.36,8.09479933]
[1741810883165,20.94744979,124.38,124.36,0.05249933]
[1741810883366,31.04,124.37,124.3,2.0618]
[1741810883562,20.94744979,124.36,124.3,2.0618]
[1741810883758,31.04,124.37,124.3,2.0618]
[1741810884163,31.04,124.37,124.34,8.0433]
[1741810884565,31.0940337,124.37,124.34,8.09215953]
[1741810886261,31.0940337,124.37,124.34,0.04885953]
[1741810886467,31.0940337,124.37,124.26,16.097]
[1741810886468,193.0,124.33,124.07,331.15925613]
[1741810886666,8.0626,124.06,124.04,121.8518051]
[1741810886865,8.0626,124.06,123.99,551.93209355]
[1741810886866,54.14744979,124.05,124.03,230.5259569]
[1741810887091,33.36,124.04,124.03,54.08893718]
[1741810887463,33.38,124.04,124.03,54.08893718]
[1741810888264,88.20584581,124.04,124.03,54.08893718]
[1741810888461,0.05317234,124.05,124.03,54.08893718]
[1741810888667,54.87901815,124.05,123.97,241.34]
[1741810888862,54.82584581,124.05,124.01,40.24]
[1741810889169,0.05195065,124.02,124.01,40.24]
[1741810889465,33.82,124.06,123.98,241.34]
[1741810889664,0.05276393,124.03,124.02,40.24]
[1741810889860,33.88,124.1,124.01,54.82584581]
[1741810890064,33.88,124.1,124.08,40.24]
[1741810890260,33.88,124.1,124.07,40.24]
[1741810891172,0.05413215,124.1,124.09,40.24]
[1741810891465,33.94,124.13,124.09,40.24]
[1741810891661,33.94,124.13,124.07,54.88059814]
[1741810891662,193.0,124.19,124.06,241.52]
[1741810891865,60.74182653,124.18,124.06,241.52]
[1741810892060,38.55346183,124.17,124.11,40.24]
[1741810892268,34.04,124.17,124.13,13.24535382]
[1741810892672,0.05654235,124.16,124.14,0.06199304]
[1741810892968,214.54313775,124.16,124.1,13.24535382]
[1741810893275,16.78029192,124.15,124.08,21.47946701]
[1741810893467,34.14,124.14,124.08,21.47946701]
[1741810893971,16.78029192,124.13,124.08,21.47946701]
[1741810894375,0.06132184,124.12,124.09,0.04760798]
[1741810894577,6.51528027,124.12,124.06,150.59603169]
[1741810895073,6.45395843,124.11,124.06,152.70633169]
[1741810895275,284.18206519,124.11,124.06,152.70633169]
[1741810895669,6.45395843,124.1,124.07,241.58]
[1741810896174,163.95062991,124.1,124.07,241.58]
[1741810896375,157.49667148,124.1,124.07,241.58]
[1741810896575,157.49667148,124.1,124.07,241.56]
[1741810896776,157.49667148,124.1,124.07,241.31817178]
[1741810897375,277.72810676,124.09,124.07,275.25817178]
[1741810897768,274.39380676,124.09,124.08,241.64]
[1741810897968,271.05970676,124.09,124.08,241.64]
[1741810899072,0.0606142,124.1,124.08,249.7006]
[1741810899276,1.40251889,124.21,124.09,241.64]
[1741810899575,33.92,124.2,124.13,49.2120574]
[1741810900174,6.36403027,124.19,124.13,57.2690574]
[1741810900374,0.05323601,124.18,124.15,0.0509796]
[1741810901184,6.36403027,124.17,124.15,0.0509796]
[1741810901767,0.05323601,124.18,124.15,0.0509796]
[1741810902478,33.78,124.17,124.15,0.0509796]
[1741810902683,49.2120574,124.16,124.09,241.64]
[1741810902880,34.06,124.15,124.09,241.64]
[1741810903282,34.06,124.15,124.14,269.08862156]
[1741810903481,34.04,124.15,124.14,269.08862156]
[1741810903779,0.05946968,124.16,124.14,269.08862156]
[1741810903982,1.40234934,124.2,124.14,269.08862156]
[1741810904178,83.3720574,124.26,124.14,269.08862156]
[1741810904373,83.3720574,124.26,124.14,224.77418145]
[1741810904577,91.4213574,124.26,124.16,8.0555]
[1741810904784,91.4213574,124.26,124.23,86.46378757]
[1741810905082,91.47274238,124.26,124.23,86.52150401]
[1741810905686,83.42344238,124.26,124.23,86.52150401]
[1741810906184,83.42344238,124.26,124.24,166.74028094]
[1741810906984,0.05138498,124.26,124.24,166.74028094]
[1741810907287,51.4244574,124.28,124.23,0.05771644]
[1741810907474,8.0486,124.27,124.23,0.05771644]
[1741810908374,51.4244574,124.28,124.23,0.05771644]
[1741810908581,0.0595396,124.26,124.23,0.05771644]
[1741810908778,34.04,124.25,124.24,145.88224765]
[1741810908985,21.9381849,124.25,124.24,145.88224765]
[1741810911385,33.9,124.25,124.24,145.88224765]
[1741810911786,33.88,124.26,124.24,145.88224765]
[1741810912085,33.86,124.26,124.24,145.88224765]
[1741810912489,33.91402929,124.26,124.24,145.88224765]
[1741810912691,33.91402929,124.26,124.23,0.05771644]
[1741810914288,8.0511,124.23,124.17,249.6945]
[1741810914486,33.78,124.22,124.17,241.64]
[1741810915086,33.78,124.22,124.18,8.0539]
[1741810915288,33.78,124.22,124.17,241.64]
[1741810915482,2.0984,124.29,124.19,0.05761369]
[1741810915483,0.05910205,124.21,124.19,0.05761369]
[1741810915786,0.05101281,124.21,124.19,0.06169202]
[1741810916187,0.05101281,124.21,124.2,8.0529]
[1741810917187,6.21244851,124.21,124.2,8.0529]
[1741810920495,16.09360295,124.21,124.2,8.0529]
[1741810921398,16.09360295,124.21,124.2,41.5529]
[1741810921886,6.21244851,124.21,124.2,41.5529]
[1741810925298,16.1219617,124.21,124.2,41.5529]
[1741810926698,16.1219617,124.21,124.19,0.06169202]
[1741810927302,16.07094889,124.2,124.19,0.06169202]
[1741810927490,16.07094889,124.2,124.19,8.11529202]
[1741810929504,20.63134594,124.2,124.19,8.11529202]
[1741810930608,53.83134594,124.2,124.19,0.06169202]
[1741810930801,53.83134594,124.2,124.17,241.64]
[1741810931005,8.0545,124.18,124.13,98.24718282]
[1741810931306,4.56039705,124.17,124.16,8.0555]
[1741810931599,20.63134594,124.17,124.16,8.0555]
[1741810932301,20.63134594,124.17,124.15,0.05816678]
[1741810932499,4.56039705,124.16,124.15,0.05816678]
[1741810932802,4.56039705,124.16,124.15,8.11436678]
[1741810933303,16.07094889,124.16,124.15,8.11436678]
[1741810933504,0.05081924,124.18,124.15,0.05816678]
[1741810933806,0.05081924,124.18,124.17,8.0549]
[1741810934006,4.63064161,124.18,124.17,8.0549]
[1741810936000,0.05081924,124.18,124.17,8.0549]
[1741810936903,4.62953913,124.18,124.16,8.0552]
[1741810937100,4.5806926,124.17,124.15,0.05816678]
[1741810937300,4.58051531,124.16,124.15,0.05816678]
[1741810937996,4.58051531,124.16,124.1,276.6026]
[1741810938193,4.58051531,124.15,124.1,243.5626]
[1741810938407,4.58051531,124.14,124.13,8.0574]
[1741810938703,2.1079,124.18,124.1,273.82587695]
[1741810938899,4.58177377,124.17,124.15,8.0558]
[1741810939099,4.58177377,124.16,124.15,8.0558]
[1741810940898,0.0579279,124.17,124.16,8.0555]
[1741810942202,12.3651,124.25,124.21,8.0517]
[1741810942407,37.51025994,124.24,124.16,2.0936]
[1741810942599,4.59025994,124.23,124.17,30.25175327]
[1741810942806,4.59022137,124.22,124.17,63.15175327]
[1741810943004,37.2152,124.25,124.17,63.15175327]
[1741810943199,0.05397457,124.22,124.2,0.05240315]
[1741810943700,0.05397457,124.22,124.21,8.0523]
[1741810943902,4.64787744,124.22,124.21,8.0523]
[1741810946212,10.73390912,124.22,124.21,8.0523]
[1741810947209,10.73617774,124.22,124.21,8.0523]
[1741810947608,6.14000625,124.22,124.21,8.0523]
[1741810948210,10.73922236,124.22,124.21,8.0523]
[1741810949921,6.14000625,124.22,124.21,8.0523]
[1741810951618,6.25e-06,124.22,124.21,8.0523]
[1741810951823,6.25e-06,124.22,124.21,38.30405327]
[1741810952421,6.25e-06,124.22,124.21,8.0523]
[1741810960626,3.875e-05,124.23,124.22,8.0516]
[1741810962222,3.875e-05,124.23,124.22,40.3316]
[1741810962422,3.875e-05,124.23,124.22,42.368]
[1741810964722,4.59444137,124.28,124.27,8.0484]
[1741810964923,118.44875103,124.34,124.22,34.3164]
[1741810964924,8.0456,124.32,124.25,30.25175327]
[1741810965227,4.59558091,124.31,124.25,62.45175327]
[1741810965418,8.0456,124.32,124.3,8.0465]
[1741810965622,4.59373938,124.31,124.3,8.0465]
[1741810966430,0.05878199,124.32,124.31,8.0458]
[1741810966728,4.64826041,124.32,124.31,8.0458]
[1741810967230,0.05878199,124.32,124.31,8.0458]
[1741810967429,0.05878199,124.32,124.3,8.0461]
[1741810968129,0.05878199,124.32,124.29,0.06039252]
[1741810968723,0.05878199,124.32,124.29,8.10729252]
[1741810968924,0.05878199,124.32,124.29,0.06039252]
[1741810969431,0.05878199,124.32,124.29,8.10689252]
[1741810970432,8.10438199,124.32,124.29,0.06039252]
[1741810970635,32.06,124.31,124.29,0.06039252]
[1741810970830,32.06,124.31,124.26,241.5]
[1741810971224,8.0468,124.3,124.26,249.5487]
[1741810971933,8.0468,124.3,124.27,0.05102118]
[1741810971934,0.0534814,124.29,124.27,0.05102118]
[1741810972426,0.0534814,124.29,124.26,241.5]
[1741810972625,4.62544631,124.29,124.26,241.5]
[1741810972826,5.97558665,124.28,124.26,241.5]
[1741810973031,5.97558665,124.28,124.23,32.02]
[1741810973226,37.97558665,124.28,124.2,303.69175327]
[1741810973524,10.54766355,124.27,124.2,241.44]
[1741810973722,10.54766355,124.27,124.23,0.05283653]
[1741810973723,0.05384145,124.25,124.23,0.05283653]
[1741810973930,8.10394145,124.25,124.23,0.05283653]
[1741810974126,5.97558665,124.24,124.23,0.05283653]
[1741810976838,5.97558665,124.24,124.23,8.10383653]
[1741810978938,8.665e-05,124.24,124.23,8.10383653]
[1741810979540,0.05384145,124.25,124.23,0.05283653]
[1741810979740,0.05384145,124.25,124.24,8.0503]
[1741810984038,0.05384145,124.25,124.23,0.05283653]
[1741810984740,0.05384145,124.25,124.24,8.0503]
[1741810985238,4.64564952,124.25,124.24,8.0503]
[1741810986545,0.05384145,124.25,124.24,8.0503]
[1741810991046,0.05384145,124.25,124.23,8.10363653]
[1741810991445,0.05384145,124.25,124.23,0.05283653]
[1741810991639,0.05384145,124.25,124.24,8.0503]
[1741810991837,4.65226451,124.25,124.24,8.0503]
[1741810992845,4.65226451,124.25,124.23,0.05283653]
[1741810993049,4.59842306,124.24,124.23,0.05283653]
[1741810993539,4.59842306,124.24,124.23,8.10383653]
[1741810994450,0.05384145,124.25,124.24,8.0503]
[1741810994651,4.64777392,124.25,124.24,8.0503]
[1741810995351,0.05384145,124.25,124.24,8.0503]
[1741810995741,0.05384145,124.25,124.24,26.94420529]
[1741810996050,4.145e-05,124.25,124.24,26.94420529]
[1741810996244,118.45412296,124.33,124.29,8.0468]
[1741810996448,44.10147999,124.32,124.29,8.0468]
[1741810996746,4.59597999,124.31,124.29,8.0468]
[1741810996950,4.59597999,124.3,124.29,8.0468]
[1741810997552,0.0562518,124.31,124.3,8.0465]
[1741810998845,0.0562518,124.31,124.3,39.4465]
[1741810999044,35.6213,124.38,124.34,8.0435]
[1741810999248,4.5939054,124.36,124.3,61.58843389]
[1741810999448,4.5939054,124.35,124.3,61.58843389]
[1741810999649,4.2213,124.38,124.3,61.58843389]
[1741810999849,4.59447755,124.37,124.3,61.58843389]
[1741811000045,4.59447755,124.36,124.34,8.0435]
[1741811000251,0.05817578,124.35,124.34,8.0435]
[1741811001456,10.0737,124.4,124.36,8.0422]
[1741811001753,4.59159518,124.39,124.36,8.0422]
[1741811001954,4.59159518,124.38,124.36,8.0422]
[1741811002149,4.59159518,124.37,124.36,8.0422]
[1741811002547,0.05690112,124.38,124.36,8.0422]
[1741811002749,4.59159518,124.37,124.35,0.0603015]
[1741811002951,0.05690112,124.38,124.35,0.0603015]
[1741811003254,4.58738005,124.37,124.35,0.0603015]
[1741811003649,4.58738005,124.36,124.35,0.0603015]
[1741811003856,31.39690112,124.38,124.35,0.0603015]
[1741811004051,4.58558845,124.37,124.35,0.0603015]
[1741811004251,12.62818845,124.36,124.35,0.0603015]
[1741811004748,12.62661265,124.36,124.35,0.0603015]
[1741811006558,8.0458,124.31,124.3,89.24290697]
[1741811006949,8.0442,124.34,124.3,89.24290697]
[1741811007151,35.6862,124.35,124.3,89.24290697]
[1741811007351,4.58151712,124.34,124.3,89.24290697]
[1741811007652,4.58151712,124.34,124.29,159.87835822]
[1741811007653,4.64011401,124.34,124.31,8.10136077]
[1741811008460,4.64011401,124.34,124.31,0.05616077]
[1741811008652,4.58151712,124.33,124.31,0.05616077]
[1741811009055,8.0446,124.33,124.31,0.05616077]
[1741811009250,0.05859689,124.34,124.31,0.05616077]
[1741811009553,0.05859689,124.34,124.32,8.0447]
[1741811009954,0.05859689,124.34,124.31,0.05616077]
[1741811010156,0.05859689,124.34,124.33,8.0445]
[1741811011350,33.5101,124.42,124.33,31.26]
[1741811011559,12.62608359,124.41,124.38,8.0411]
[1741811011859,4.58638359,124.4,124.38,8.0411]
[1741811012053,4.58638359,124.39,124.38,8.0411]
[1741811012256,12.2308,124.42,124.39,8.0402]
[1741811012451,0.05714795,124.4,124.39,8.0402]
[1741811012762,0.05714795,124.4,124.39,8.0406]
[1741811012960,31.42,124.46,124.38,30.18843389]
[1741811013161,4.58651353,124.45,124.38,30.18843389]
[1741811013356,12.62361353,124.45,124.42,8.0383]
[1741811013550,4.58651353,124.44,124.38,30.18843389]
[1741811013858,6.3148,124.48,124.4,30.18843389]
[1741811014064,4.58299362,124.47,124.4,61.6449212]
[1741811014261,4.58299362,124.47,124.4,61.58843389]
[1741811014959,8.0361,124.47,124.42,8.0383]
[1741811015160,6.3148,124.48,124.42,8.0383]
[1741811015361,0.05894232,124.46,124.43,0.05846695]
[1741811015560,36.032921,124.46,124.43,0.05846695]
[1741811015760,4.57290637,124.45,124.39,89.24290697]
[1741811016163,31.4,124.46,124.39,89.24290697]
[1741811016366,31.4,124.46,124.36,520.57913361]
[1741811016665,8.0394,124.41,124.37,39.4818]
[1741811016865,61.58843389,124.46,124.37,39.4818]
[1741811016866,0.05918362,124.42,124.4,0.06093359]
[1741811017466,8.09808362,124.42,124.4,0.06093359]
[1741811019367,0.05918362,124.42,124.4,0.06093359]
[1741811020067,0.05918362,124.42,124.4,8.10053359]
[1741811020264,0.05918362,124.42,124.4,0.06093359]
[1741811020664,0.05918362,124.42,124.4,8.10063359]
[1741811021465,0.05918362,124.42,124.4,0.06093359]
[1741811022067,8.09838362,124.42,124.4,0.06093359]
[1741811022666,0.05918362,124.42,124.4,0.06093359]
[1741811024063,8.09798362,124.42,124.4,0.06093359]
[1741811024969,0.05918362,124.42,124.4,8.10093359]
[1741811025370,8.09798362,124.42,124.4,0.06093359]
[1741811026071,0.05918362,124.42,124.4,0.06093359]
[1741811027070,0.05918362,124.42,124.4,29.06748064]
[1741811027772,0.05918362,124.42,124.41,8.0393]
[1741811027972,0.05918362,124.42,124.41,29.00654705]
[1741811028174,50.19952311,124.46,124.41,29.00654705]
[1741811028371,4.56611781,124.45,124.41,29.00654705]
[1741811028572,50.19952311,124.46,124.4,0.06093359]
[1741811028873,4.56793804,124.45,124.4,0.06093359]
[1741811029270,0.06174064,124.44,124.4,0.06093359]
[1741811029873,0.06174064,124.44,124.4,133.19100541]
[1741811030074,31.16,124.43,124.4,133.19100541]
[1741811030569,8.0393,124.41,124.4,133.19100541]
[1741811031472,8.0393,124.41,124.4,31.08102689]
[1741811032076,8.039,124.42,124.4,31.08102689]
[1741811032267,31.16,124.43,124.4,31.08102689]
[1741811032466,31.16,124.43,124.4,39.12072689]
[1741811032666,31.16,124.43,124.4,120.32393386]
[1741811033776,8.039,124.42,124.4,120.32393386]
[1741811034172,31.16,124.43,124.4,120.32393386]
[1741811034378,8.09944064,124.44,124.4,120.32393386]
[1741811034576,8.09944064,124.44,124.41,166.87464715]
[1741811035078,8.09944064,124.44,124.41,174.91394715]
[1741811035372,8.0383,124.43,124.41,166.87464715]
[1741811035880,8.0383,124.43,124.42,31.0200933]
[1741811036479,12.62300682,124.43,124.42,31.0200933]
[1741811038976,12.62300682,124.43,124.42,12.66579641]
[1741811039375,4.58470682,124.43,124.4,0.06093359]
[1741811039673,35.75659364,124.42,124.4,0.06093359]
[1741811039874,12.63589364,124.41,124.4,0.06093359]
[1741811040478,4.59659364,124.41,124.4,0.06093359]
[1741811041181,12.63589364,124.41,124.4,0.06093359]
[1741811041476,4.59659364,124.41,124.4,0.06093359]
[1741811043385,12.63589364,124.41,124.4,0.06093359]
[1741811044380,4.59659364,124.41,124.4,0.06093359]
[1741811044587,4.59659364,124.41,124.4,8.10093359]
[1741811045887,0.06174064,124.44,124.41,8.0392]
[1741811046077,4.61116639,124.43,124.41,8.0392]
[1741811046277,4.61116639,124.42,124.41,8.0392]
[1741811046475,4.61116639,124.42,124.4,0.06093359]
[1741811046688,0.06174064,124.44,124.4,0.06093359]
[1741811046889,12.6501966,124.43,124.4,0.06093359]
[1741811047089,4.6120966,124.42,124.4,8.10053359]
[1741811047289,8.0381,124.43,124.4,8.10053359]
[1741811047479,4.61259194,124.42,124.4,8.10053359]
[1741811047682,8.0381,124.43,124.4,8.10053359]
[1741811047981,4.61260707,124.42,124.4,8.10053359]
[1741811048180,8.0381,124.43,124.4,8.10053359]
[1741811048380,4.61369466,124.42,124.4,8.10053359]
[1741811048583,8.0381,124.43,124.4,8.10053359]
[1741811048784,4.61331511,124.42,124.4,8.10053359]
[1741811048987,8.0381,124.43,124.4,8.10053359]
[1741811049289,8.0381,124.43,124.41,8.0393]
[1741811049588,0.06174064,124.44,124.4,0.06093359]
[1741811049790,4.6135893,124.43,124.42,8.0387]
[1741811050482,0.06174064,124.44,124.42,8.0387]
[1741811050685,0.06174064,124.44,124.4,18.9004567]
[1741811050887,0.06174064,124.44,124.4,108.14336367]
[1741811051189,0.06174064,124.44,124.43,8.038]
[1741811051385,4.67688281,124.44,124.43,8.038]
[1741811052092,0.06174064,124.44,124.43,8.038]
[1741811052390,4.67990871,124.44,124.43,8.038]
[1741811053582,4.68253342,124.44,124.43,8.038]
[1741811054191,4.68803478,124.44,124.42,26.87792311]
[1741811054387,0.06174064,124.44,124.42,18.83952311]
[1741811055093,0.06174064,124.44,124.43,8.038]
[1741811055292,4.69275114,124.44,124.43,8.038]
[1741811055687,20.14033371,124.44,124.41,137.57770697]
[1741811055893,4.6310105,124.43,124.41,137.57770697]
[1741811056087,8.09944064,124.44,124.41,137.57770697]
[1741811056288,4.63333623,124.43,124.41,137.57770697]
[1741811056587,4.63333623,124.42,124.41,97.28190697]
[1741811057097,0.06174064,124.44,124.41,89.24290697]
[1741811057392,4.63531819,124.43,124.41,89.24290697]
[1741811057693,0.06174064,124.44,124.4,18.9004567]
[1741811057893,4.63636845,124.43,124.41,31.14]
[1741811058188,0.06174064,124.44,124.41,31.14]
[1741811058392,4.63685174,124.43,124.42,8.0382]
[1741811058997,4.63685174,124.43,124.42,26.87772311]
[1741811059204,0.06174064,124.44,124.43,8.038]
[1741811059497,4.69815537,124.44,124.43,8.038]
[1741811061686,0.06174064,124.44,124.43,8.038]
[1741811062099,39.1739,124.5,124.47,8.0352]
[1741811062901,8.0339,124.5,124.44,18.83952311]
[1741811063293,0.05327292,124.48,124.46,0.05851333]
[1741811063793,0.05327292,124.48,124.47,8.0351]
[1741811063993,31.14,124.53,124.46,18.89803644]
[1741811064199,8.0323,124.52,124.46,18.83952311]
[1741811064893,8.032,124.53,124.5,8.0331]
[1741811065194,0.05999975,124.53,124.5,0.05473015]
[1741811065400,0.05999975,124.53,124.5,18.89425326]
[1741811066094,0.05999975,124.53,124.5,0.05473015]
[1741811066902,8.09209975,124.53,124.5,0.05473015]
[1741811067098,0.05999975,124.53,124.5,0.05473015]
[1741811067496,0.05999975,124.53,124.5,8.08783015]
[1741811067702,0.05999975,124.53,124.5,26.92735326]
[1741811068004,0.05999975,124.53,124.51,8.0328]
[1741811069005,0.05999975,124.53,124.5,58.06745326]
[1741811070806,0.05999975,124.53,124.5,0.05473015]
[1741811071497,8.0326,124.52,124.5,0.05473015]
[1741811073501,8.0322,124.52,124.5,0.05473015]
[1741811074111,0.05999975,124.53,124.5,0.05473015]
[1741811074312,0.05999975,124.53,124.5,8.08793015]
[1741811074713,0.05999975,124.53,124.5,0.05473015]
[1741811075211,8.0326,124.52,124.5,0.05473015]
[1741811075905,0.05999975,124.53,124.5,0.05473015]
[1741811076113,0.05999975,124.53,124.51,8.0328]
[1741811076411,8.09189975,124.53,124.5,0.05473015]
[1741811076600,8.09189975,124.53,124.5,8.08793015]
[1741811076800,0.05999975,124.53,124.5,0.05473015]
[1741811077010,0.05999975,124.53,124.5,8.08823015]
[1741811077511,8.09189975,124.53,124.5,8.08823015]
[1741811078907,8.09189975,124.53,124.51,8.0329]
[1741811079307,0.05999975,124.53,124.51,8.0329]
[1741811080210,0.05999975,124.53,124.5,0.05473015]
[1741811080417,0.05999975,124.53,124.52,8.0322]
[1741811081212,3.2694,124.59,124.52,18.83952311]
[1741811081411,3.2694,124.59,124.55,8.0301]
[1741811081611,4.60194775,124.58,124.55,8.0301]
[1741811082006,10.72431641,124.6,124.57,8.0288]
[1741811082204,4.60150404,124.59,124.54,49.95952311]
[1741811082407,4.60150404,124.59,124.57,0.05828489]
[1741811082610,0.05585819,124.6,124.57,0.05828489]
[1741811082804,8.0284,124.58,124.57,0.05828489]
[1741811083514,12.6280199,124.58,124.57,0.05828489]
[1741811083716,8.0284,124.58,124.57,0.05828489]
[1741811084218,12.62818185,124.58,124.57,0.05828489]
[1741811084414,8.0284,124.58,124.57,0.05828489]
[1741811085013,12.62698959,124.58,124.57,0.05828489]
[1741811085412,4.59858959,124.58,124.57,0.05828489]
[1741811085615,7.41360153,124.6,124.57,0.05828489]
[1741811085616,8.0281,124.59,124.57,0.05828489]
[1741811087122,8.0284,124.58,124.57,0.05828489]
[1741811089416,8.0284,124.58,124.53,8.0315]
[1741811089417,8.03,124.56,124.53,8.0315]
[1741811090627,8.08213206,124.56,124.53,8.08475717]
[1741811090826,0.05213206,124.56,124.53,0.05325717]
[1741811091125,8.0303,124.55,124.53,0.05325717]
[1741811091324,0.05213206,124.56,124.53,0.05325717]
[1741811091525,8.0309,124.54,124.53,0.05325717]
[1741811091724,0.05213206,124.56,124.53,0.05325717]
[1741811092124,0.05213206,124.56,124.55,8.0303]
[1741811094625,4.60255172,124.6,124.57,8.0286]
[1741811094922,12.63015172,124.6,124.57,8.0286]
[1741811095118,4.60255172,124.59,124.57,8.0286]
[1741811095325,34.2535,124.61,124.57,8.0286]
[1741811095519,4.60308284,124.6,124.57,8.0286]
[1741811095714,12.63088284,124.59,124.58,0.06040109]
[1741811096326,4.60308284,124.59,124.58,0.06040109]
[1741811098729,4.60308284,124.59,124.58,8.08880109]
[1741811099827,4.60308284,124.59,124.58,0.06040109]
[1741811100330,12.63078284,124.59,124.58,0.06040109]
[1741811100830,4.60308284,124.59,124.58,0.06040109]
[1741811101525,4.60308284,124.59,124.58,8.08880109]
[1741811102027,39.17811834,124.6,124.58,8.08880109]
[1741811102226,39.17811834,124.6,124.58,0.06040109]
[1741811102419,31.15081834,124.6,124.58,0.06040109]
[1741811102735,8.0277,124.59,124.58,0.06040109]
[1741811103126,12.63755698,124.59,124.58,0.06040109]
[1741811103327,20.01677733,124.59,124.58,0.06040109]
[1741811104329,11.98907733,124.59,124.58,0.06040109]
[1741811104529,4.60985698,124.59,124.58,0.06040109]
[1741811105232,12.63755698,124.59,124.58,0.06040109]
[1741811105633,20.01677733,124.59,124.58,0.06040109]